fUST/lending_fUST_20250601
["ID","MTS","AMOUNT","RATE_DAILY","PERIOD"]
[363508406,1748746246124,-430.0,0.00016438,2]
[363508408,1748746246133,-430.0,0.00016438,2]
[363508410,1748746246143,-430.0,0.00016438,2]
[363508412,1748746246153,-430.0,0.00016438,2]
[363508414,1748746246162,-430.0,0.00016438,2]
[363508416,1748746246171,-430.0,0.00016438,2]
[363508418,1748746246181,-430.0,0.00016438,2]
[363508420,1748746246190,-430.0,0.00016438,2]
[363508422,1748746246200,-430.0,0.00016438,2]
[363508424,1748746246210,-430.0,0.00016438,2]
[363508426,1748746246220,-443.08937843,0.00016438,2]
[363508428,1748746246230,-430.0,0.00016438,2]
[363508430,1748746246239,-430.0,0.00016438,2]
[363508432,1748746246249,-430.0,0.00016438,2]
[363508434,1748746246258,-430.0,0.00016438,2]
[363508436,1748746246268,-430.0,0.00016438,2]
[363508438,1748746246277,-471.68886244,0.00016438,2]
[363508440,1748746246286,-430.0,0.00016438,2]
[363508442,1748746246296,-350.00342829,0.00016438,2]
[363508459,1748746246436,-430.0,0.00016438,2]
[363508461,1748746246446,-442.12365908,0.00016438,2]
[363508463,1748746246456,-430.0,0.00016438,2]
[363508465,1748746246466,-430.0,0.00016438,2]
[363508467,1748746246475,-430.0,0.00016438,2]
[363508470,1748746246485,-268.23077591,0.00016438,2]
[363508472,1748746246495,-430.0,0.00016438,2]
[363508474,1748746246503,-207.90247379,0.00016438,2]
[363508476,1748746246514,-430.0,0.00016438,2]
[363508478,1748746246524,-430.0,0.00016438,2]
[363508480,1748746246533,-430.0,0.00016438,2]
[363508482,1748746246544,-430.0,0.00016438,2]
[363508484,1748746246554,-435.74696005,0.00016438,2]
[363508486,1748746246563,-412.43411767,0.00016438,2]
[363508488,1748746246573,-430.0,0.00016438,2]
[363508490,1748746246582,-430.0,0.00016438,2]
[363508492,1748746246591,-423.40622762,0.00016438,2]
[363508494,1748746246600,-431.620784,0.00016438,2]
[363508496,1748746246609,-430.0,0.00016438,2]
[363508498,1748746246619,-430.0,0.00016438,2]
[363508500,1748746246629,-430.0,0.00016438,2]
[363508502,1748746246638,-430.0,0.00016438,2]
[363508504,1748746246648,-455.67172874,0.00016438,2]
[363508506,1748746246657,-473.71564651,0.00016438,2]
[363508508,1748746246667,-299.56764622,0.00016438,2]
[363508510,1748746246676,-430.0,0.00016438,2]
[363508512,1748746246686,-329.06435847,0.00016438,2]
[363508515,1748746246699,-100.93564153,0.00016438,2]
[363508517,1748746246708,-430.0,0.00016438,2]
[363508518,1748746246718,-430.0,0.00016438,2]
[363508521,1748746246728,-437.7812393,0.00016438,2]
[363508523,1748746246737,-430.0,0.00016438,2]
[363508525,1748746246747,-430.0,0.00016438,2]
[363508527,1748746246756,-270.63881194,0.00016438,2]
[363508529,1748746246769,-159.36118806,0.00016438,2]
[363508531,1748746246779,-430.0,0.00016438,2]
[363508533,1748746246791,-430.0,0.00016438,2]
[363508535,1748746246801,-404.99131323,0.00016438,2]
[363508538,1748746246814,-25.00868677,0.00016438,2]
[363508541,1748746246824,-208.92961296,0.00016438,2]
[363508543,1748746246833,-430.0,0.00016438,2]
[363508545,1748746246843,-430.0,0.00016438,2]
[363508547,1748746246852,-430.0,0.00016438,2]
[363508549,1748746246863,-430.0,0.00016438,2]
[363508551,1748746246873,-430.0,0.00016438,2]
[363508553,1748746246883,-402.37225117,0.00016438,2]
[363508555,1748746246893,-430.0,0.00016438,2]
[363508557,1748746246902,-430.0,0.00016438,2]
[363508559,1748746246911,-208.15336855,0.00016438,2]
[363508562,1748746246923,-221.84663145,0.00016438,2]
[363508564,1748746246932,-449.59,0.00016438,2]
[363508566,1748746246942,-430.0,0.00016438,2]
[363508568,1748746246951,-265.07714555,0.00016438,2]
[363508570,1748746246960,-430.0,0.00016438,2]
[363508572,1748746246970,-430.0,0.00016438,2]
[363508574,1748746246980,-441.25,0.00016438,2]
[363508576,1748746246989,-430.0,0.00016438,2]
[363508578,1748746246999,-430.0,0.00016438,2]
[363508580,1748746247010,-430.0,0.00016438,2]
[363508582,1748746247020,-431.72,0.00016438,2]
[363508584,1748746247030,-433.45076996,0.00016438,2]
[363508586,1748746247040,-403.06782848,0.00016438,2]
[363508588,1748746247050,-430.0,0.00016438,2]
[363508590,1748746247059,-430.0,0.00016438,2]
[363508592,1748746247069,-430.0,0.00016438,2]
[363508594,1748746247078,-430.0,0.00016438,2]
[363508596,1748746247087,-430.0,0.00016438,2]
[363508598,1748746247096,-530.5150378,0.00016438,2]
[363508600,1748746247106,-430.0,0.00016438,2]
[363508602,1748746247115,-453.33559398,0.00016438,2]
[363508604,1748746247125,-430.0,0.00016438,2]
[363508606,1748746247134,-430.0,0.00016438,2]
[363508608,1748746247144,-561.71,0.00016438,2]
[363508610,1748746247154,-430.0,0.00016438,2]
[363508612,1748746247163,-430.0,0.00016438,2]
[363508614,1748746247172,-430.0,0.00016438,2]
[363508616,1748746247182,-430.0,0.00016438,2]
[363508619,1748746247192,-430.0,0.00016438,2]
[363508621,1748746247201,-430.0,0.00016438,2]
[363508623,1748746247211,-453.82298417,0.00016438,2]
[363508625,1748746247220,-168.48868773,0.00016438,2]
[363508627,1748746247229,-402.82946001,0.00016438,2]
[363508629,1748746247238,-430.0,0.00016438,2]
[363508631,1748746247248,-430.0,0.00016438,2]
[363508632,1748746247257,-430.0,0.00016438,2]
[363508635,1748746247267,-430.0,0.00016438,2]
[363508637,1748746247276,-430.0,0.00016438,2]
[363508639,1748746247285,-959.59,0.00016438,2]
[363508641,1748746247295,-430.0,0.00016438,2]
[363508643,1748746247305,-430.0,0.00016438,2]
[363508644,1748746247313,-456.29959584,0.00016438,2]
[363508647,1748746247324,-430.0,0.00016438,2]
[363508649,1748746247333,-430.0,0.00016438,2]
[363508651,1748746247343,-430.0,0.00016438,2]
[363508652,1748746247352,-218.54628308,0.00016438,2]
[363508654,1748746247361,-156.0,0.00016438,3]
[363508657,1748746247371,-268.84177871,0.00016475,2]
[363508659,1748746247381,-769.07746234,0.00016612,2]
[363508661,1748746247390,-268.84177871,0.00016612,2]
[363508663,1748746247400,-430.0,0.00016712,2]
[363508665,1748746247409,-261.35002777,0.00016712,2]
[363508667,1748746247418,-430.0,0.00016712,2]
[363508669,1748746247428,-430.0,0.00016712,2]
[363508671,1748746247437,-430.0,0.00016712,2]
[363508672,1748746247447,-430.0,0.00016712,2]
[363508675,1748746247457,-430.0,0.00016712,2]
[363508676,1748746247468,-475.21990848,0.00016712,2]
[363508678,1748746247478,-430.0,0.00016712,2]
[363508680,1748746247487,-430.0,0.00016712,2]
[363508682,1748746247497,-430.0,0.00016712,2]
[363508684,1748746247506,-359.17081692,0.00016712,2]
[363508686,1748746247516,-430.0,0.00016712,2]
[363508688,1748746247526,-430.0,0.00016712,2]
[363508691,1748746247535,-430.0,0.00016712,2]
[363508692,1748746247546,-430.0,0.00016712,2]
[363508695,1748746247556,-430.0,0.00016712,2]
[363508696,1748746247565,-492.09595252,0.00016712,2]
[363508698,1748746247575,-440.62505349,0.00016712,2]
[363508701,1748746247585,-444.07422914,0.00016712,2]
[363508703,1748746247595,-105.72020933,0.00016712,2]
[363509148,1748746936552,606.519636,0.00013699,2]
[363509149,1748746938162,3173.27010019,0.00015,2]
[363509151,1748746976349,207.2165943,0.00014606,2]
[363509152,1748746982015,3452.72096332,0.00015,2]
[363509158,1748747041156,620.30028556,0.00015,2]
[363509159,1748747041184,2572.54879112,0.00015,2]
[363509165,1748747113719,4399.89815336,0.00015,2]
[363509166,1748747172986,3930.71095026,0.00015,2]
[363509167,1748747173009,345.56392906,0.00015,2]
[363509168,1748747196671,162.93077498,6.8e-07,2]
[363509169,1748747196850,162.93077498,6.8e-07,2]
[363509170,1748747236094,-500.0,0.00015204,2]
[363509171,1748747236116,-1200.0,0.00015603,2]
[363509172,1748747236137,-300.0,0.00015603,2]
[363509173,1748747236162,-300.0,0.00015604,2]
[363509174,1748747236184,-174.71488707,0.00015604,2]
[363509175,1748747244074,9134.8724712,0.0001489,2]
[363509176,1748747246098,-125.28511293,0.00015604,2]
[363509177,1748747246119,-300.0,0.00015604,2]
[363509178,1748747246141,-300.0,0.00015604,2]
[363509179,1748747246163,-300.0,0.00015606,2]
[363509180,1748747246188,-500.0,0.00015607,2]
[363509181,1748747246211,-500.0,0.00015607,2]
[363509182,1748747246233,-500.0,0.00015607,2]
[363509183,1748747246258,-500.0,0.00015607,2]
[363509184,1748747246278,-393.74572365,0.00015607,2]
[363509185,1748747246301,-500.0,0.00015607,2]
[363509186,1748747246325,-207.97230543,0.00015607,2]
[363509187,1748747246346,-500.0,0.00015607,2]
[363509188,1748747246369,-24.41058122,0.00015607,2]
[363509189,1748747285444,1166.65549967,0.00024658,120]
[363509195,1748747336041,1096.85994452,0.00014707,2]
[363509196,1748747336070,10903.15789474,0.00014707,2]
[363509197,1748747336098,10903.15789474,0.00014707,2]
[363509198,1748747336125,10903.15789474,0.00014707,2]
[363509199,1748747336154,10903.15789474,0.00014707,2]
[363509200,1748747336183,8894.14707282,0.00014707,2]
[363509202,1748747405000,5974.3626135,0.00024657,120]
[363509249,1748747432272,-1207.04907668,0.00015353,2]
[363509251,1748747432282,-619.22132542,0.00015508,2]
[363509253,1748747432292,-300.0,0.00015605,2]
[363509255,1748747432302,-300.0,0.00015605,2]
[363509257,1748747432315,-300.0,0.00015605,2]
[363509259,1748747432325,-708.41746362,0.00015605,2]
[363509261,1748747432337,-491.58253638,0.00015605,2]
[363509263,1748747432347,-500.0,0.00015606,2]
[363509265,1748747432357,-500.0,0.00015606,2]
[363509267,1748747432367,-43.83710898,0.00015606,2]
[363509269,1748747432379,-456.16289102,0.00015606,2]
[363509271,1748747432390,-500.0,0.00015606,2]
[363509273,1748747432401,-500.0,0.00015606,2]
[363509276,1748747432411,-500.0,0.00015606,2]
[363509278,1748747432421,-500.0,0.00015606,2]
[363509280,1748747432431,-500.0,0.00015606,2]
[363509281,1748747432440,-500.0,0.00015606,2]
[363509283,1748747432450,-500.0,0.00015606,2]
[363509286,1748747432461,-500.0,0.00015606,2]
[363509288,1748747432470,-500.0,0.00015606,2]
[363509290,1748747432481,-500.0,0.00015606,2]
[363509291,1748747432491,-500.0,0.00015606,2]
[363509294,1748747432501,-546.88371615,0.00015606,2]
[363509296,1748747432511,-525.42007528,0.00015606,2]
[363509298,1748747432520,-500.0,0.00015606,2]
[363509300,1748747432529,-498.49663397,0.00015606,2]
[363509301,1748747432538,-500.0,0.00015606,2]
[363509303,1748747432548,-204.50296139,0.00015606,2]
[363509305,1748747432557,-500.0,0.00015606,2]
[363509307,1748747432567,-500.0,0.00015606,2]
[363509309,1748747432577,-500.0,0.00015606,2]
[363509311,1748747432586,-500.0,0.00015606,2]
[363509313,1748747432596,-500.0,0.00015606,2]
[363509315,1748747432606,-500.0,0.00015606,2]
[363509317,1748747432615,-500.0,0.00015606,2]
[363509319,1748747432624,-500.0,0.00015606,2]
[363509321,1748747432633,-500.0,0.00015606,2]
[363509323,1748747432643,-500.0,0.00015606,2]
[363509325,1748747432652,-500.0,0.00015606,2]
[363509327,1748747432662,-500.0,0.00015606,2]
[363509329,1748747432672,-500.0,0.00015606,2]
[363509331,1748747432682,-500.0,0.00015606,2]
[363509333,1748747432693,-500.0,0.00015606,2]
[363509335,1748747432702,-500.0,0.00015606,2]
[363509337,1748747432712,-500.0,0.00015606,2]
[363509340,1748747432724,-500.0,0.00015606,2]
[363509341,1748747432734,-500.0,0.00015606,2]
[363509344,1748747432743,-500.0,0.00015606,2]
[363509346,1748747432754,-500.0,0.00015606,2]
[363509348,1748747432764,-500.0,0.00015606,2]
[363509350,1748747432773,-406.02719433,0.00015606,2]
[363509352,1748747432783,-500.0,0.00015606,2]
[363509354,1748747432794,-500.0,0.00015606,2]
[363509356,1748747432803,-500.0,0.00015606,2]
[363509358,1748747432813,-500.0,0.00015606,2]
[363509360,1748747432823,-500.0,0.00015606,2]
[363509362,1748747432832,-500.0,0.00015606,2]
[363509364,1748747432842,-500.0,0.00015606,2]
[363509366,1748747432851,-500.0,0.00015606,2]
[363509368,1748747432861,-500.0,0.00015606,2]
[363509370,1748747432871,-500.0,0.00015606,2]
[363509372,1748747432881,-500.0,0.00015606,2]
[363509374,1748747432890,-500.0,0.00015606,2]
[363509376,1748747432900,-500.0,0.00015606,2]
[363509378,1748747432909,-500.0,0.00015606,2]
[363509380,1748747432919,-500.0,0.00015606,2]
[363509382,1748747432928,-500.0,0.00015606,2]
[363509384,1748747432937,-472.92080722,0.00015606,2]
[363509386,1748747432947,-500.0,0.00015606,2]
[363509388,1748747432956,-169.49111947,0.00015606,2]
[363509390,1748747432966,-500.0,0.00015606,2]
[363509392,1748747432976,-6726.25858631,0.00015607,2]
[363509394,1748747432989,-600.00000025,0.00015607,2]
[363509397,1748747433008,-461.4225,0.00015607,2]
[363509399,1748747433020,-401.0,0.00015607,2]
[363509402,1748747433032,-5179.06551488,0.00015607,2]
[363509407,1748747433074,-33419.90480921,0.00015607,2]
[363509409,1748747433084,-518.57069284,0.00015608,2]
[363509411,1748747433094,-500.0,0.00016005,2]
[363509413,1748747433104,-1648.39889516,0.00016338,2]
[363509415,1748747433114,-655.39,0.00016427,3]
[363509417,1748747433124,-873.82,0.00016428,3]
[363509419,1748747433134,-436.91,0.00016428,3]
[363509421,1748747433144,-218.46,0.00016428,3]
[363509423,1748747433153,-470.79,0.00016428,3]
[363509425,1748747433163,-235.39,0.00016428,3]
[363509427,1748747433173,-706.22,0.00016428,3]
[363509429,1748747433182,-160.0,0.00016437,2]
[363509431,1748747433193,-500.0,0.00016437,2]
[363509433,1748747433203,-500.0,0.00016437,2]
[363509435,1748747433212,-500.0,0.00016437,2]
[363509436,1748747433222,-500.0,0.00016437,2]
[363509439,1748747433232,-615.85209952,0.00016437,2]
[363509441,1748747433242,-500.0,0.00016437,2]
[363509443,1748747433252,-444.4211685,0.00016437,2]
[363509445,1748747433264,-500.0,0.00016437,2]
[363509447,1748747433275,-500.0,0.00016437,2]
[363509449,1748747433285,-500.0,0.00016437,2]
[363509451,1748747433295,-500.0,0.00016437,2]
[363509453,1748747433306,-500.0,0.00016437,2]
[363509454,1748747433321,-500.0,0.00016437,2]
[363509457,1748747433332,-500.0,0.00016437,2]
[363509459,1748747433342,-500.0,0.00016437,2]
[363509460,1748747433353,-500.0,0.00016437,2]
[363509462,1748747433364,-500.0,0.00016437,2]
[363509464,1748747433375,-550.0,0.00016437,2]
[363509466,1748747433385,-500.0,0.00016437,2]
[363509467,1748747433399,-500.0,0.00016437,2]
[363509468,1748747433411,-430.0,0.00016438,2]
[363509469,1748747433421,-430.0,0.00016438,2]
[363509470,1748747433431,-401.7945903,0.00016438,2]
[363509471,1748747433442,-430.72600837,0.00016438,2]
[363509473,1748747433453,-430.0,0.00016438,2]
[363509475,1748747433463,-430.0,0.00016438,2]
[363509477,1748747433473,-430.0,0.00016438,2]
[363509479,1748747433483,-377.95587204,0.00016438,2]
[363509481,1748747433493,-430.0,0.00016438,2]
[363509483,1748747433503,-430.0,0.00016438,2]
[363509485,1748747433513,-449.25462796,0.00016438,2]
[363509487,1748747433523,-430.0,0.00016438,2]
[363509489,1748747433533,-430.0,0.00016438,2]
[363509491,1748747433543,-430.0,0.00016438,2]
[363509493,1748747433553,-451.41760294,0.00016438,2]
[363509495,1748747433564,-430.0,0.00016438,2]
[363509498,1748747433574,-430.0,0.00016438,2]
[363509499,1748747433584,-282.06880575,0.00016438,2]
[363509501,1748747433594,-500.0,0.00016438,2]
[363509504,1748747433605,-500.0,0.00016438,2]
[363509506,1748747433615,-500.0,0.00016438,2]
[363509508,1748747433624,-500.0,0.00016438,2]
[363509510,1748747433634,-500.0,0.00016438,2]
[363509512,1748747433644,-439.4364531,0.00016438,2]
[363509514,1748747433654,-430.0,0.00016438,2]
[363509516,1748747433664,-430.0,0.00016438,2]
[363509518,1748747433673,-152.17912101,0.00016438,2]
[363509520,1748747433683,-462.94460843,0.00016438,2]
[363509522,1748747433694,-535.40509036,0.00016438,2]
[363509524,1748747433704,-430.97180903,0.00016438,2]
[363509526,1748747433713,-430.0,0.00016438,2]
[363509528,1748747433723,-430.0,0.00016438,2]
[363509530,1748747433732,-433.86188991,0.00016438,2]
[363509532,1748747433742,-500.4602774,0.00016438,2]
[363509534,1748747433751,-430.0,0.00016438,2]
[363509535,1748747433761,-377.08715598,0.00016438,2]
[363509538,1748747433771,-430.0,0.00016438,2]
[363509540,1748747433782,-430.0,0.00016438,2]
[363509542,1748747433791,-344.28995489,0.00016438,2]
[363509544,1748747433802,-430.0,0.00016438,2]
[363509546,1748747433812,-430.0,0.00016438,2]
[363509548,1748747433822,-430.0,0.00016438,2]
[363509550,1748747433833,-430.0,0.00016438,2]
[363509551,1748747433843,-430.0,0.00016438,2]
[363509554,1748747433852,-430.0,0.00016438,2]
[363509556,1748747433863,-470.41944304,0.00016438,2]
[363509558,1748747433872,-430.0,0.00016438,2]
[363509560,1748747433882,-430.0,0.00016438,2]
[363509562,1748747433893,-170.92192624,0.00016438,2]
[363509564,1748747433903,-430.0,0.00016438,2]
[363509566,1748747433912,-383.02709817,0.00016438,2]
[363509568,1748747433922,-472.93453681,0.00016438,2]
[363509570,1748747433931,-430.0,0.00016438,2]
[363509572,1748747433941,-430.0,0.00016438,2]
[363509573,1748747433951,-228.39771863,0.00016438,2]
[363509575,1748747433960,-454.74573656,0.00016438,2]
[363509577,1748747433971,-430.0,0.00016438,2]
[363509580,1748747433981,-430.0,0.00016438,2]
[363509582,1748747433991,-430.0,0.00016438,2]
[363509584,1748747434002,-449.17462273,0.00016438,2]
[363509586,1748747434011,-430.0,0.00016438,2]
[363509588,1748747434021,-461.69333702,0.00016438,2]
[363509590,1748747434030,-459.73682816,0.00016438,2]
[363509592,1748747434040,-430.0,0.00016438,2]
[363509594,1748747434049,-430.0,0.00016438,2]
[363509596,1748747434059,-430.0,0.00016438,2]
[363509598,1748747434070,-430.0,0.00016438,2]
[363509600,1748747434080,-452.54088076,0.00016438,2]
[363509602,1748747434089,-430.0,0.00016438,2]
[363509604,1748747434099,-430.0,0.00016438,2]
[363509606,1748747434108,-151.43856148,0.00016438,2]
[363509608,1748747434118,-430.0,0.00016438,2]
[363509610,1748747434127,-430.0,0.00016438,2]
[363509612,1748747434136,-430.0,0.00016438,2]
[363509614,1748747434146,-430.0,0.00016438,2]
[363509616,1748747434156,-430.0,0.00016438,2]
[363509618,1748747434166,-504.36641913,0.00016438,2]
[363509620,1748747434176,-430.0,0.00016438,2]
[363509622,1748747434186,-430.0,0.00016438,2]
[363509624,1748747434196,-430.82669615,0.00016438,2]
[363509626,1748747434207,-522.23225103,0.00016438,2]
[363509628,1748747434217,-430.0,0.00016438,2]
[363509630,1748747434228,-430.0,0.00016438,2]
[363509632,1748747434238,-430.0,0.00016438,2]
[363509634,1748747434248,-430.0,0.00016438,2]
[363509636,1748747434258,-430.0,0.00016438,2]
[363509637,1748747434267,-438.27894563,0.00016438,2]
[363509639,1748747434278,-430.0,0.00016438,2]
[363509642,1748747434287,-283.90510904,0.00016438,2]
[363509643,1748747434297,-430.0,0.00016438,2]
[363509644,1748747434314,-430.0,0.00016438,2]
[363509645,1748747434324,-430.0,0.00016438,2]
[363509646,1748747434335,-430.0,0.00016438,2]
[363509647,1748747434345,-430.0,0.00016438,2]
[363509648,1748747434357,-430.0,0.00016438,2]
[363509649,1748747434366,-449.63948808,0.00016438,2]
[363509650,1748747434376,-430.0,0.00016438,2]
[363509651,1748747434387,-448.0,0.00016438,2]
[363509652,1748747434397,-430.0,0.00016438,2]
[363509653,1748747434407,-430.0,0.00016438,2]
[363509654,1748747434416,-430.0,0.00016438,2]
[363509655,1748747434426,-430.0,0.00016438,2]
[363509656,1748747434436,-430.0,0.00016438,2]
[363509657,1748747434446,-437.73664337,0.00016438,2]
[363509658,1748747434456,-430.0,0.00016438,2]
[363509659,1748747434465,-432.71006021,0.00016438,2]
[363509660,1748747434475,-437.11612023,0.00016438,2]
[363509661,1748747434486,-430.0,0.00016438,2]
[363509662,1748747434495,-430.0,0.00016438,2]
[363509663,1748747434505,-500.0,0.00016438,2]
[363509664,1748747434515,-347.79695946,0.00016438,2]
[363509665,1748747434525,-430.0,0.00016438,2]
[363509666,1748747434534,-430.0,0.00016438,2]
[363509667,1748747434544,-430.0,0.00016438,2]
[363509668,1748747434553,-262.0986916,0.00016438,2]
[363509669,1748747434565,-430.0,0.00016438,2]
[363509670,1748747434575,-430.0,0.00016438,2]
[363509671,1748747434585,-430.0,0.00016438,2]
[363509672,1748747434595,-430.0,0.00016438,2]
[363509674,1748747434604,-408.29398825,0.00016438,2]
[363509676,1748747434614,-430.0,0.00016438,2]
[363509678,1748747434624,-430.0,0.00016438,2]
[363509680,1748747434634,-430.0,0.00016438,2]
[363509682,1748747434643,-430.0,0.00016438,2]
[363509684,1748747434653,-431.79363285,0.00016438,2]
[363509686,1748747434662,-430.0,0.00016438,2]
[363509688,1748747434671,-430.0,0.00016438,2]
[363509690,1748747434681,-431.13348392,0.00016438,2]
[363509692,1748747434691,-430.0,0.00016438,2]
[363509694,1748747434700,-430.0,0.00016438,2]
[363509696,1748747434710,-430.0,0.00016438,2]
[363509698,1748747434719,-278.15543846,0.00016438,2]
[363509700,1748747434729,-437.42308816,0.00016438,2]
[363509702,1748747434738,-430.0,0.00016438,2]
[363509703,1748747434748,-430.0,0.00016438,2]
[363509705,1748747434757,-430.0,0.00016438,2]
[363509707,1748747434766,-430.0,0.00016438,2]
[363509708,1748747434777,-436.85961124,0.00016438,2]
[363509709,1748747434786,-430.0,0.00016438,2]
[363509711,1748747434796,-432.41560209,0.00016438,2]
[363509713,1748747434806,-436.99387,0.00016438,2]
[363509715,1748747434817,-582.21,0.00016438,2]
[363509717,1748747434827,-430.0,0.00016438,2]
[363509718,1748747434836,-494.92698807,0.00016438,2]
[363509719,1748747434845,-430.0,0.00016438,2]
[363509720,1748747434855,-447.23589787,0.00016438,2]
[363509721,1748747434865,-442.72484457,0.00016438,2]
[363509722,1748747434874,-430.0,0.00016438,2]
[363509723,1748747434883,-430.0,0.00016438,2]
[363509724,1748747434893,-430.0,0.00016438,2]
[363509725,1748747434903,-430.0,0.00016438,2]
[363509726,1748747434912,-442.86245648,0.00016438,2]
[363509727,1748747434922,-430.0,0.00016438,2]
[363509728,1748747434931,-436.24720046,0.00016438,2]
[363509729,1748747434941,-574.02,0.00016438,2]
[363509730,1748747434950,-430.0,0.00016438,2]
[363509731,1748747434960,-1528.82,0.00016438,2]
[363509732,1748747434969,-430.0,0.00016438,2]
[363509733,1748747434979,-430.0,0.00016438,2]
[363509734,1748747434988,-430.0,0.00016438,2]
[363509735,1748747434998,-741.08,0.00016438,2]
[363509736,1748747435008,-497.75993381,0.00016438,2]
[363509737,1748747435018,-430.0,0.00016438,2]
[363509738,1748747435028,-432.81513853,0.00016438,2]
[363509739,1748747435038,-430.0,0.00016438,2]
[363509740,1748747435047,-434.8338154,0.00016438,2]
[363509741,1748747435057,-430.0,0.00016438,2]
[363509742,1748747435067,-682.52,0.00016438,2]
[363509743,1748747435077,-430.0,0.00016438,2]
[363509744,1748747435087,-438.80370224,0.00016438,2]
[363509745,1748747435096,-971.96,0.00016438,2]
[363509746,1748747435106,-168.8531929,0.00016438,2]
[363509747,1748747435115,-430.0,0.00016438,2]
[363509748,1748747435127,-430.0,0.00016438,2]
[363509749,1748747435139,-430.0,0.00016438,2]
[363509750,1748747435150,-430.0,0.00016438,2]
[363509751,1748747435160,-430.0,0.00016438,2]
[363509752,1748747435169,-430.0,0.00016438,2]
[363509753,1748747435179,-430.0,0.00016438,2]
[363509754,1748747435316,-439.47906017,0.00016438,2]
[363509755,1748747435327,-430.0,0.00016438,2]
[363509756,1748747435337,-430.0,0.00016438,2]
[363509757,1748747435347,-430.0,0.00016438,2]
[363509758,1748747435358,-430.0,0.00016438,2]
[363509759,1748747435368,-430.0,0.00016438,2]
[363509760,1748747435377,-291.66163473,0.00016438,2]
[363509761,1748747435387,-430.0,0.00016438,2]
[363509762,1748747435398,-430.0,0.00016438,2]
[363509763,1748747435408,-430.0,0.00016438,2]
[363509764,1748747435418,-430.0,0.00016438,2]
[363509765,1748747435428,-430.0,0.00016438,2]
[363509766,1748747435438,-430.0,0.00016438,2]
[363509767,1748747435449,-430.0,0.00016438,2]
[363509768,1748747435458,-1666.05,0.00016438,2]
[363509769,1748747435468,-430.0,0.00016438,2]
[363509770,1748747435478,-430.0,0.00016438,2]
[363509771,1748747435488,-625.06,0.00016438,2]
[363509772,1748747435498,-430.0,0.00016438,2]
[363509773,1748747435508,-430.0,0.00016438,2]
[363509774,1748747435518,-500.0,0.00016438,2]
[363509775,1748747435527,-430.0,0.00016438,2]
[363509776,1748747435538,-430.0,0.00016438,2]
[363509777,1748747435547,-430.0,0.00016438,2]
[363509778,1748747435559,-483.54959332,0.00016438,2]
[363509779,1748747435569,-430.0,0.00016438,2]
[363509780,1748747435579,-567.55,0.00016438,2]
[363509781,1748747435589,-430.0,0.00016438,2]
[363509782,1748747435598,-430.0,0.00016438,2]
[363509783,1748747435609,-454.22348103,0.00016438,2]
[363509784,1748747435619,-430.0,0.00016438,2]
[363509785,1748747435629,-430.0,0.00016438,2]
[363509786,1748747435641,-430.0,0.00016438,2]
[363509787,1748747435652,-430.0,0.00016438,2]
[363509788,1748747435662,-430.0,0.00016438,2]
[363509789,1748747435672,-430.0,0.00016438,2]